bitfinex/quotes_SOLUSD_20240612
["timestamp","ask_amount","ask_price","bid_price","bid_amount"]
[1718235680129,7.96,154.79,154.73,20.0]
[1718235680327,7.96,154.79,154.73,27.96]
[1718235687329,7.96,154.79,154.74,7.96]
[1718235690736,7.96,154.8,154.74,7.96]
[1718235690932,20.0,154.84,154.74,7.96]
[1718235691118,7.96,154.84,154.78,7.96]
[1718235691521,7.96,154.83,154.78,7.96]
[1718235691724,7.96,154.82,154.77,7.96]
[1718235695742,7.96,154.83,154.77,7.96]
[1718235697839,307.7742,154.88,154.79,7.96]
[1718235698042,7.96,154.84,154.78,7.96]
[1718235698843,7.96,154.84,154.76,0.17]
[1718235699042,7.96,154.84,154.78,7.96]
[1718235699929,7.96,154.83,154.78,7.96]
[1718235703527,7.96,154.84,154.78,7.96]
[1718235705547,7.96,154.83,154.78,7.96]
[1718235710254,7.96,154.85,154.79,7.96]
[1718235716366,7.96,154.85,154.76,0.17]
[1718235716661,7.96,154.84,154.79,7.96]
[1718235720355,7.96,154.82,154.75,16.0577]
[1718235720548,7.96,154.82,154.76,20.0]
[1718235720750,7.96,154.81,154.75,23.5077]
[1718235722850,7.96,154.82,154.76,7.96]
[1718235723472,7.96,154.82,154.75,15.5477]
[1718235724855,7.96,154.81,154.75,15.5477]
[1718235725472,7.96,154.82,154.75,15.5477]
[1718235725683,7.96,154.82,154.76,7.96]
[1718235725985,7.96,154.81,154.76,7.96]
[1718235726174,7.96,154.81,154.75,15.5477]
[1718235726392,7.96,154.81,154.76,7.96]
[1718235726777,7.96,154.82,154.76,7.96]
[1718235728479,7.96,154.81,154.76,7.96]
[1718235730495,7.96,154.82,154.76,7.96]
[1718235730791,307.7742,154.88,154.78,7.96]
[1718235731089,7.96,154.83,154.78,7.96]
[1718235731263,7.96,154.83,154.77,7.96]
[1718235735489,20.0,154.87,154.77,7.96]
[1718235735680,7.96,154.83,154.77,7.96]
[1718235736890,7.96,154.84,154.78,7.96]
[1718235737193,20.0,154.87,154.78,7.96]
[1718235737389,7.96,154.84,154.78,7.96]
[1718235739396,7.96,154.84,154.79,7.96]
[1718235739591,7.96,154.85,154.79,7.96]
[1718235743797,0.17,154.84,154.74,6.4132]
[1718235744100,7.96,154.81,154.75,27.96]
[1718235745707,7.96,154.81,154.76,7.96]
[1718235745880,7.96,154.81,154.77,20.0]
[1718235746391,7.96,154.82,154.77,20.0]
[1718235748013,7.96,154.82,154.77,27.96]
[1718235748998,7.96,154.83,154.77,27.96]
[1718235749696,7.96,154.83,154.78,9.25193824]
[1718235750408,7.96,154.84,154.78,9.25193824]
[1718235750999,7.96,154.84,154.79,7.96]
[1718235753596,7.96,154.84,154.78,7.96]
[1718235754297,20.0,154.87,154.79,7.96]
[1718235754493,7.96,154.84,154.79,7.96]
[1718235754906,7.96,154.84,154.78,7.96]
[1718235757404,20.0,154.87,154.79,6.0346]
[1718235757706,7.96,154.86,154.8,7.96]
[1718235759112,0.17,154.85,154.8,7.96]
[1718235759407,7.96,154.81,154.77,20.0]
[1718235759608,7.96,154.81,154.76,20.0]
[1718235760294,7.96,154.82,154.76,27.96]
[1718235768001,7.96,154.81,154.76,20.0]
[1718235770294,0.68,154.85,154.76,20.0]
[1718235770499,7.96,154.81,154.76,20.0]
[1718235774018,7.96,154.82,154.76,27.96]
[1718235775407,7.96,154.82,154.76,20.0]
[1718235775607,7.96,154.82,154.75,20.0]
[1718235786836,7.96,154.83,154.75,20.0]
[1718235800133,7.96,154.83,154.77,7.96]
[1718235815242,20.0,154.87,154.78,7.96]
[1718235815449,20.0,154.87,154.79,7.96]
[1718235815450,7.96,154.85,154.79,7.96]
[1718235818752,7.96,154.84,154.78,7.96]
[1718235820658,7.96,154.84,154.76,0.34]
[1718235820956,7.96,154.84,154.78,7.96]
[1718235823057,7.96,154.84,154.75,20.17]
[1718235823358,7.96,154.83,154.77,7.96]
[1718235824653,7.96,154.83,154.78,7.96]
[1718235825357,0.17,154.86,154.79,7.96]
[1718235825565,7.96,154.84,154.79,7.96]
[1718235826963,7.96,154.84,154.78,7.96]
[1718235835378,20.0,154.87,154.78,7.96]
[1718235835555,7.96,154.84,154.79,7.96]
[1718235838054,7.96,154.84,154.78,7.96]
[1718235838776,7.96,154.83,154.77,7.96]
[1718235839875,7.96,154.83,154.75,20.17]
[1718235839876,7.96,154.83,154.75,20.0]
[1718235840172,7.96,154.81,154.75,20.0]
[1718235840384,7.96,154.81,154.76,7.96]
[1718235841976,7.96,154.82,154.76,7.96]
[1718235845781,7.96,154.82,154.75,20.0]
[1718235846077,16.2873,154.84,154.76,7.96]
[1718235846281,7.96,154.83,154.77,7.96]
[1718235846484,7.96,154.83,154.78,7.96]
[1718235846863,7.96,154.83,154.77,7.96]
[1718235847277,7.96,154.82,154.77,7.96]
[1718235848766,7.96,154.81,154.75,20.0]
[1718235848975,7.96,154.81,154.75,27.96]
[1718235851312,7.96,154.79,154.75,20.0]
[1718235852192,7.96,154.79,154.72,1.12203906]
[1718235852401,7.96,154.75,154.7,16.3845]
[1718235852583,7.96,154.75,154.7,24.3445]
[1718235852765,20.0,154.78,154.7,24.3445]
[1718235852965,7.96,154.76,154.71,7.96]
[1718235853668,7.96,154.76,154.7,16.3845]
[1718235853860,7.96,154.76,154.7,24.3445]
[1718235856589,7.96,154.76,154.7,16.3845]
[1718235856788,7.96,154.76,154.7,24.3445]
[1718235859179,0.17,154.78,154.66,22.715314]
[1718235859500,7.96,154.72,154.67,7.96]
[1718235860004,0.17,154.75,154.67,7.96]
[1718235860172,7.96,154.72,154.67,7.96]
[1718235860370,7.96,154.72,154.66,21.5929]
[1718235861596,7.96,154.71,154.66,23.4738]
[1718235861806,7.96,154.71,154.63,15.6126]
[1718235862108,7.96,154.71,154.66,7.96]
[1718235863095,0.51,154.75,154.66,7.96]
[1718235863286,7.96,154.72,154.67,7.96]
[1718235863791,0.17,154.74,154.67,7.96]
[1718235864004,0.34,154.74,154.67,7.96]
[1718235864306,0.34,154.74,154.69,7.96]
[1718235864307,7.96,154.74,154.69,7.96]
[1718235864597,7.96,154.72,154.62,6.1927]
[1718235864780,7.96,154.71,154.65,7.96]
[1718235864981,7.96,154.7,154.65,7.96]
[1718235865682,7.96,154.71,154.65,7.96]
[1718235866185,7.96,154.71,154.66,7.96]
[1718235868891,7.96,154.72,154.66,7.96]
[1718235871386,7.96,154.72,154.62,8.5855]
[1718235871584,7.96,154.71,154.66,7.96]
[1718235872705,7.96,154.7,154.62,6.1927]
[1718235872916,7.96,154.7,154.65,7.96]
[1718235873385,7.96,154.71,154.65,7.96]
[1718235873896,7.96,154.71,154.63,20.0]
[1718235874097,7.96,154.71,154.65,7.96]
[1718235875300,7.96,154.71,154.63,20.0]
[1718235875496,7.96,154.71,154.65,7.96]
[1718235875719,7.96,154.7,154.65,7.96]
[1718235876700,8.13,154.72,154.61,15.0111]
[1718235877022,7.96,154.67,154.62,27.96]
[1718235877523,7.96,154.67,154.62,7.96]
[1718235878517,65.51,154.71,154.63,7.96]
[1718235878724,7.96,154.68,154.63,7.96]
[1718235883435,21.3617,154.73,154.62,6.1002]
[1718235883727,7.96,154.72,154.66,7.96]
[1718235884421,21.3617,154.73,154.66,7.96]
[1718235884621,27.96,154.72,154.66,7.96]
[1718235884831,21.3617,154.73,154.66,7.96]
[1718235885326,7.96,154.72,154.66,7.96]
[1718235888231,0.17,154.71,154.65,7.96]
[1718235888531,7.96,154.7,154.65,7.96]
[1718235888739,7.96,154.7,154.64,7.96]
[1718235892051,7.96,154.7,154.65,7.96]
[1718235892350,8.13,154.71,154.65,7.96]
[1718235892705,7.96,154.71,154.65,7.96]
[1718235893114,8.13,154.72,154.66,7.96]
[1718235895352,7.96,154.71,154.66,7.96]
[1718235897838,7.96,154.71,154.62,8.493]
[1718235898024,7.96,154.71,154.66,7.96]
[1718235901534,0.17,154.76,154.67,7.96]
[1718235901742,7.96,154.73,154.68,7.96]
[1718235903218,22.6348,154.77,154.71,7.96]
[1718235903618,7.96,154.76,154.71,7.96]
[1718235903923,22.6348,154.77,154.67,6.1495]
[1718235904120,22.6348,154.77,154.7,7.96]
[1718235908742,22.6348,154.77,154.71,7.96]
[1718235909549,22.6348,154.77,154.67,6.1495]
[1718235909550,16.5725,154.77,154.72,7.96]
[1718235909722,7.96,154.78,154.72,7.96]
[1718235910530,7.96,154.79,154.73,7.96]
[1718235920347,7.96,154.79,154.7,15.5024]
[1718235920550,7.96,154.78,154.73,7.96]
[1718235920728,7.96,154.78,154.72,7.96]
[1718235921755,7.96,154.78,154.7,15.5024]
[1718235921937,7.96,154.78,154.72,7.96]
[1718235923769,7.96,154.78,154.73,7.96]
[1718235924957,7.96,154.8,154.74,7.96]
[1718235925649,7.96,154.8,154.75,7.96]
[1718235926451,23.0561,154.81,154.75,7.96]
[1718235927634,21.3865,154.85,154.72,0.17]
[1718235927845,7.96,154.83,154.78,7.96]
[1718235931253,7.96,154.83,154.77,7.96]
[1718235931450,0.17,154.84,154.77,7.96]
[1718235931760,7.96,154.83,154.77,7.96]
[1718235931986,0.34,154.84,154.77,7.96]
[1718235932264,0.34,154.84,154.78,7.96]
[1718235932459,7.96,154.83,154.78,7.96]
[1718235933552,21.3865,154.85,154.78,7.96]
[1718235933756,7.96,154.83,154.78,7.96]
[1718235934059,7.96,154.84,154.78,7.96]
[1718235934250,21.3865,154.85,154.78,7.96]
[1718235934251,15.3646,154.85,154.78,7.96]
[1718235934650,7.96,154.84,154.78,7.96]
[1718235935341,7.96,154.84,154.79,7.96]
[1718235937537,15.3646,154.85,154.79,7.96]
[1718235937743,7.96,154.85,154.79,7.96]
[1718235937944,0.51,154.86,154.79,7.96]
[1718235938144,20.0,154.88,154.81,7.96]
[1718235938363,7.96,154.86,154.81,7.96]
[1718235941173,20.0,154.88,154.81,7.96]
[1718235941363,20.0,154.88,154.82,7.96]
[1718235941672,7.96,154.87,154.82,7.96]
[1718235942566,15.9589,154.89,154.82,7.96]
[1718235942756,7.96,154.87,154.82,7.96]
[1718235943278,7.96,154.88,154.82,7.96]
[1718235943449,7.96,154.88,154.83,7.96]
[1718235943852,7.96,154.88,154.82,7.96]
[1718235945249,15.9589,154.89,154.82,7.96]
[1718235945449,7.96,154.88,154.82,7.96]
[1718235948058,7.96,154.88,154.83,7.96]
[1718235948374,7.96,154.88,154.82,7.96]
[1718235948750,7.96,154.87,154.82,7.96]
[1718235949372,7.96,154.87,154.8,22.1641]
[1718235949577,15.9589,154.89,154.8,24.0276]
[1718235949578,7.96,154.85,154.8,24.0276]
[1718235949753,7.96,154.85,154.8,16.0676]
[1718235949949,7.96,154.85,154.76,6.4533]
[1718235950155,7.96,154.85,154.79,7.96]
[1718235950355,7.96,154.84,154.78,7.96]
[1718235951261,7.96,154.84,154.79,20.0]
[1718235953192,7.96,154.85,154.79,27.96]
[1718235953562,0.51,154.88,154.8,7.96]
[1718235953761,7.96,154.86,154.8,7.96]
[1718235954574,7.96,154.87,154.81,7.96]
[1718235955071,7.96,154.87,154.79,20.0]
[1718235955368,7.96,154.86,154.8,7.96]
[1718235955665,7.96,154.86,154.77,20.0]
[1718235955666,7.96,154.86,154.81,7.96]
[1718235955864,7.96,154.86,154.8,7.96]
[1718235957492,7.96,154.85,154.79,7.96]
[1718235957786,7.96,154.85,154.8,20.0]
[1718235958591,7.96,154.85,154.8,27.96]
[1718235960678,0.51,154.88,154.76,22.5561]
[1718235960679,6.653,154.88,154.76,22.5561]
[1718235960884,7.96,154.82,154.76,22.5561]
[1718235961088,7.96,154.82,154.76,30.5161]
[1718235961294,7.96,154.82,154.76,22.5561]
[1718235961473,7.96,154.82,154.76,30.5161]
[1718235961878,7.96,154.81,154.76,22.5561]
[1718235962072,7.96,154.81,154.76,16.1028]
[1718235963384,7.96,154.82,154.77,7.96]
[1718235963792,7.96,154.82,154.76,16.1028]
[1718235963987,7.96,154.82,154.77,7.96]
[1718235967297,15.5207,154.85,154.78,7.96]
[1718235967498,7.96,154.83,154.78,7.96]
[1718235968379,15.5207,154.85,154.76,16.1028]
[1718235968584,23.4807,154.85,154.79,7.96]
[1718235968888,7.96,154.84,154.78,7.96]
[1718235970079,7.96,154.84,154.79,7.96]
[1718235970697,7.96,154.84,154.76,16.1028]
[1718235970896,7.96,154.84,154.78,7.96]
[1718235972420,7.96,154.82,154.77,20.0]
[1718235972594,7.96,154.83,154.78,7.96]
[1718235973401,7.96,154.84,154.78,7.96]
[1718235973898,15.5207,154.85,154.79,7.96]
[1718235974202,23.4807,154.85,154.8,7.96]
[1718235975203,23.4807,154.85,154.79,7.96]
[1718235976097,23.4807,154.85,154.76,15.4765]
[1718235976312,23.4807,154.85,154.79,7.96]
[1718235978394,7.96,154.83,154.76,15.4765]
[1718235978594,7.96,154.83,154.77,27.96]
[1718235979598,7.96,154.81,154.77,20.0]
[1718235980588,7.96,154.81,154.76,7.96]
[1718235980905,7.96,154.82,154.77,20.0]
[1718235981995,8.13,154.83,154.77,27.96]
[1718235982196,7.96,154.83,154.77,27.96]
[1718235982908,7.96,154.84,154.79,7.96]
[1718235983803,7.96,154.84,154.77,20.0]
[1718235984003,7.96,154.84,154.78,7.96]
[1718235985420,7.96,154.84,154.76,20.0]
[1718235985718,7.96,154.84,154.78,7.96]
[1718235987916,7.96,154.84,154.76,20.0]
[1718235988126,7.96,154.83,154.78,7.96]
[1718235992925,7.96,154.83,154.76,20.0]
[1718235993108,7.96,154.83,154.78,7.96]
[1718235995128,15.5207,154.85,154.78,7.96]
[1718235995327,7.96,154.84,154.78,7.96]
[1718235995506,15.5207,154.85,154.79,7.96]
[1718235995707,23.4807,154.85,154.79,7.96]
[1718235995909,15.5207,154.85,154.8,7.96]
[1718235996512,15.5207,154.85,154.81,7.96]
[1718235996837,6.143,154.88,154.83,7.96]
[1718235997050,14.103,154.88,154.83,7.96]
[1718235997627,6.143,154.88,154.83,7.96]
[1718235997831,14.103,154.88,154.83,7.96]
[1718235998209,6.143,154.88,154.83,7.96]
[1718235998410,14.103,154.88,154.83,7.96]
[1718236000131,14.103,154.88,154.82,7.96]
[1718236001530,15.5501,154.89,154.83,7.96]
[1718236001710,23.5101,154.89,154.84,7.96]
[1718236009617,15.5501,154.89,154.84,7.96]
[1718236009827,15.5501,154.89,154.85,7.96]
[1718236019449,267.56,154.91,154.86,7.96]
[1718236020327,259.6,154.91,154.86,7.96]
[1718236020527,267.56,154.91,154.86,7.96]
[1718236020733,267.56,154.91,154.85,7.96]
[1718236021649,7.96,154.9,154.85,7.96]
[1718236024352,7.96,154.86,154.8,7.96]
[1718236026556,7.96,154.87,154.81,7.96]
[1718236030055,0.17,154.88,154.81,7.96]
[1718236030259,7.96,154.86,154.81,7.96]
[1718236031741,7.96,154.87,154.82,7.96]
[1718236032348,7.96,154.88,154.82,7.96]
[1718236035060,7.96,154.87,154.82,7.96]
[1718236035563,6.5543,154.89,154.78,15.8724]
[1718236035769,7.96,154.87,154.81,7.96]
[1718236040659,7.96,154.87,154.78,15.8724]
[1718236040860,7.96,154.87,154.81,7.96]
[1718236042460,7.96,154.87,154.82,7.96]
[1718236043549,7.96,154.87,154.81,7.96]
[1718236049675,6.5543,154.89,154.81,7.96]
[1718236049975,7.96,154.87,154.81,7.96]
[1718236057487,7.96,154.84,154.78,15.8724]
[1718236057664,0.68,154.88,154.76,14.4854]
[1718236057665,7.96,154.82,154.76,14.4854]
[1718236057987,7.96,154.82,154.76,7.96]
[1718236060087,7.96,154.82,154.77,20.0]
[1718236064588,7.96,154.82,154.74,15.8763]
[1718236064589,0.17,154.82,154.75,7.96]
[1718236064894,7.96,154.8,154.76,20.0]
[1718236067185,7.96,154.81,154.76,27.96]
[1718236067369,0.34,154.82,154.76,27.96]
[1718236067569,7.96,154.81,154.76,27.96]
[1718236068177,8.3,154.82,154.76,27.96]
[1718236068383,7.96,154.82,154.77,7.96]
[1718236069291,7.96,154.83,154.77,7.96]
[1718236070286,7.96,154.85,154.8,7.96]
[1718236070992,274.6588,154.91,154.77,6.0032]
[1718236071176,7.96,154.88,154.83,7.96]
[1718236071786,7.96,154.89,154.83,7.96]
[1718236072299,274.6588,154.91,154.83,7.96]
[1718236072497,7.96,154.89,154.83,7.96]
[1718236073078,274.6588,154.91,154.84,7.96]
[1718236073277,8.13,154.9,154.84,7.96]
[1718236076400,7.96,154.9,154.85,7.96]
[1718236079004,7.96,154.9,154.84,7.96]
[1718236080304,275.1688,154.91,154.84,7.96]
[1718236080488,7.96,154.9,154.84,7.96]
[1718236080911,7.96,154.89,154.8,31.84]
[1718236081215,7.96,154.88,154.83,7.96]
[1718236081410,7.96,154.89,154.83,7.96]
[1718236082382,7.96,154.89,154.79,16.8948]
[1718236082383,7.96,154.88,154.79,16.8948]
[1718236082586,7.96,154.88,154.8,20.0]
[1718236082902,7.96,154.88,154.82,7.96]
[1718236083087,7.96,154.88,154.83,20.0]
[1718236085007,7.96,154.85,154.79,16.2148]
[1718236085184,7.96,154.85,154.79,24.1748]
[1718236085587,7.96,154.85,154.8,7.96]
[1718236085884,7.96,154.86,154.81,7.96]
[1718236086287,0.34,154.89,154.82,7.96]
[1718236086486,7.96,154.87,154.82,7.96]
[1718236087117,7.96,154.87,154.79,16.2148]
[1718236087301,7.96,154.87,154.81,7.96]
[1718236089807,7.96,154.87,154.82,7.96]
[1718236090406,7.96,154.88,154.83,27.96]
[1718236091011,7.96,154.89,154.83,27.96]
[1718236091730,7.96,154.89,154.84,7.96]
[1718236092496,7.96,154.89,154.83,20.0]
[1718236092698,7.96,154.89,154.83,7.96]
[1718236094124,0.34,154.9,154.83,7.96]
[1718236094304,7.96,154.89,154.84,7.96]
[1718236095102,7.96,154.9,154.84,7.96]
[1718236095909,7.96,154.9,154.85,7.96]
[1718236101107,7.96,154.9,154.81,20.0]
[1718236103925,15.0588,154.91,154.81,20.0]
[1718236104110,7.96,154.9,154.81,20.0]
[1718236105726,7.96,154.89,154.81,20.0]
[1718236106702,7.96,154.89,154.83,7.96]
[1718236108923,7.96,154.89,154.84,7.96]
[1718236109925,7.96,154.9,154.84,7.96]
[1718236113602,7.96,154.89,154.83,7.96]
[1718236114729,7.96,154.9,154.84,7.96]
[1718236114917,7.96,154.9,154.81,20.0]
[1718236114918,7.96,154.9,154.85,7.96]
[1718236115101,15.2288,154.91,154.85,7.96]
[1718236115419,7.96,154.9,154.85,7.96]
[1718236115635,15.2288,154.91,154.85,7.96]
[1718236115810,23.1888,154.91,154.85,7.96]
[1718236122814,7.96,154.9,154.85,7.96]
[1718236128127,7.96,154.91,154.85,7.96]
[1718236132742,7.96,154.9,154.85,7.96]
[1718236137943,7.96,154.91,154.85,7.96]
[1718236138744,0.17,154.92,154.85,7.96]
[1718236138954,7.96,154.91,154.85,7.96]
[1718236141950,7.96,154.91,154.86,7.96]
[1718236143038,20.17,154.94,154.86,7.96]
[1718236143348,7.96,154.92,154.86,7.96]
[1718236145333,7.96,154.92,154.83,16.1946]
[1718236145534,7.96,154.92,154.86,7.96]
[1718236146557,20.17,154.94,154.86,7.96]
[1718236146863,7.96,154.93,154.87,7.96]
[1718236147634,7.96,154.93,154.84,20.0]
[1718236148151,7.96,154.93,154.87,7.96]
[1718236151570,20.17,154.94,154.87,7.96]
[1718236152141,7.96,154.92,154.87,7.96]
[1718236153443,7.96,154.92,154.86,7.96]
[1718236153863,7.96,154.91,154.86,7.96]
[1718236155079,16.4045,154.95,154.85,6.4459]
[1718236155080,0.51,154.95,154.85,6.4459]
[1718236155247,7.96,154.94,154.88,7.96]
[1718236155573,7.96,154.94,154.89,7.96]
[1718236156067,15.5108,154.99,154.9,7.96]
[1718236156275,7.96,154.95,154.9,7.96]
[1718236156569,15.5108,154.99,154.9,7.96]
[1718236156747,7.96,154.95,154.9,7.96]
[1718236157571,7.96,154.96,154.9,7.96]
[1718236158771,0.17,154.98,154.9,7.96]
[1718236158952,7.96,154.96,154.9,7.96]
[1718236159971,7.96,154.96,154.87,16.5637]
[1718236160270,7.96,154.95,154.89,7.96]
[1718236160660,7.96,154.94,154.89,7.96]
[1718236165269,7.96,154.95,154.89,7.96]
[1718236166766,7.96,154.94,154.89,7.96]
[1718236167186,7.96,154.94,154.88,7.96]
[1718236167500,7.96,154.93,154.89,20.0]
[1718236169287,7.96,154.93,154.88,7.96]
[1718236169474,20.68,154.98,154.85,6.4459]
[1718236169475,7.96,154.92,154.85,6.4459]
[1718236169783,7.96,154.96,154.85,6.4459]
[1718236169784,7.96,154.9,154.85,7.96]
[1718236170496,7.96,154.9,154.84,7.96]
[1718236171171,7.96,154.9,154.83,16.0713]
[1718236171373,7.96,154.89,154.83,24.0313]
[1718236171676,7.96,154.9,154.84,7.96]
[1718236171882,7.96,154.89,154.84,7.96]
[1718236172211,7.96,154.89,154.83,16.0713]
[1718236172390,7.96,154.85,154.79,16.6057]
[1718236172567,7.96,154.85,154.79,24.5657]
[1718236172986,7.96,154.85,154.79,16.6057]
[1718236173188,7.96,154.85,154.79,24.5657]
[1718236173976,7.96,154.85,154.8,7.96]
[1718236174882,7.96,154.86,154.8,7.96]
[1718236175577,15.269,154.92,154.81,7.96]
[1718236175775,7.96,154.87,154.81,7.96]
[1718236175980,7.96,154.87,154.82,7.96]
[1718236178999,7.96,154.87,154.79,16.6057]
[1718236179202,7.96,154.87,154.82,7.96]
[1718236181395,7.96,154.88,154.82,7.96]
[1718236183393,7.96,154.86,154.79,16.6057]
[1718236183575,7.96,154.88,154.82,7.96]
[1718236184387,7.96,154.88,154.79,16.6057]
[1718236184593,7.96,154.88,154.82,7.96]
[1718236184994,7.96,154.88,154.79,16.6057]
[1718236185200,7.96,154.88,154.82,7.96]
[1718236189905,0.17,154.91,154.84,7.96]
[1718236190113,7.96,154.9,154.84,7.96]
[1718236191612,7.96,154.89,154.83,7.96]
[1718236192607,7.96,154.88,154.82,7.96]
[1718236193405,7.96,154.87,154.81,7.96]
[1718236193609,7.96,154.87,154.82,27.96]
[1718236194809,7.96,154.88,154.82,27.96]
[1718236196785,7.96,154.88,154.83,7.96]
[1718236197416,7.96,154.88,154.82,20.0]
[1718236197590,7.96,154.88,154.83,7.96]
[1718236197789,7.96,154.89,154.83,7.96]
[1718236198103,7.96,154.89,154.84,7.96]
[1718236198497,7.96,154.89,154.83,7.96]
[1718236199717,15.269,154.92,154.8,20.0]
[1718236199912,23.229,154.92,154.87,7.96]
[1718236200213,23.229,154.92,154.85,7.96]
[1718236200395,7.96,154.9,154.84,7.96]
[1718236200597,7.96,154.89,154.84,7.96]
[1718236202810,7.96,154.89,154.81,6.6624]
[1718236203115,7.96,154.89,154.83,7.96]
[1718236204090,0.34,154.9,154.83,7.96]
[1718236204418,7.96,154.91,154.85,7.96]
[1718236204798,7.96,154.9,154.84,7.96]
[1718236206907,7.96,154.9,154.85,7.96]
[1718236207416,7.96,154.91,154.86,7.96]
[1718236208518,23.399,154.92,154.86,7.96]
[1718236210220,23.229,154.92,154.86,7.96]
[1718236210433,23.229,154.92,154.87,7.96]
[1718236210894,15.269,154.92,154.87,7.96]
[1718236212523,23.229,154.92,154.87,7.96]
[1718236212819,23.229,154.92,154.86,7.96]
[1718236214420,23.229,154.92,154.83,15.0616]
[1718236214622,7.96,154.9,154.84,27.96]
[1718236214807,7.96,154.89,154.84,27.96]
[1718236215205,7.96,154.9,154.84,27.96]
[1718236215918,7.96,154.9,154.84,20.0]
[1718236216126,7.96,154.9,154.84,7.96]
[1718236217020,7.96,154.89,154.84,7.96]
[1718236219931,7.96,154.89,154.82,20.0]
[1718236220427,7.96,154.88,154.82,20.0]
[1718236220601,7.96,154.88,154.82,27.96]
[1718236221205,7.96,154.88,154.82,20.0]
[1718236221505,7.96,154.87,154.81,20.0]
[1718236221705,7.96,154.87,154.81,27.96]
[1718236222833,7.96,154.87,154.82,7.96]
[1718236223503,0.17,154.9,154.82,7.96]
[1718236223830,7.96,154.88,154.82,7.96]
[1718236224018,7.96,154.88,154.81,20.0]
[1718236224332,7.96,154.88,154.82,7.96]
[1718236225528,7.96,154.89,154.83,7.96]
[1718236225708,7.96,154.89,154.84,7.96]
[1718236226830,7.96,154.9,154.84,7.96]
[1718236227729,6.2564,154.91,154.84,7.96]